fUST/lending_fUST_20251209
["ID","MTS","AMOUNT","RATE_DAILY","PERIOD"]
[397605494,1765211458947,-500.0,8.767e-05,2]
[397605496,1765211458958,-603.97,8.767e-05,2]
[397605498,1765211458969,-500.0,8.767e-05,2]
[397605501,1765211458980,-500.0,8.767e-05,2]
[397605503,1765211458991,-505.4,8.767e-05,2]
[397605505,1765211459004,-500.0,8.767e-05,2]
[397605506,1765211459014,-418.91811755,8.767e-05,2]
[397605509,1765211459023,-500.0,8.767e-05,2]
[397605510,1765211459033,-1005.61,8.767e-05,2]
[397605512,1765211459043,-1124.03,8.767e-05,2]
[397605515,1765211459052,-500.0,8.767e-05,2]
[397605517,1765211459062,-500.0,8.767e-05,2]
[397605518,1765211459071,-1837.83,8.767e-05,2]
[397605520,1765211459082,-500.0,8.767e-05,2]
[397605522,1765211459092,-500.0,8.767e-05,2]
[397605524,1765211459101,-1172.81,8.767e-05,2]
[397605527,1765211459111,-631.98,8.767e-05,2]
[397605529,1765211459121,-500.0,8.767e-05,2]
[397605531,1765211459131,-500.0,8.767e-05,2]
[397605533,1765211459140,-500.0,8.767e-05,2]
[397605535,1765211459149,-500.0,8.767e-05,2]
[397605537,1765211459158,-500.0,8.767e-05,2]
[397605539,1765211459170,-500.0,8.767e-05,2]
[397605541,1765211459179,-500.0,8.767e-05,2]
[397605543,1765211459189,-500.0,8.767e-05,2]
[397605545,1765211459198,-500.0,8.767e-05,2]
[397605547,1765211459207,-669.64,8.767e-05,2]
[397605549,1765211459218,-500.0,8.767e-05,2]
[397605551,1765211459227,-1278.91,8.767e-05,2]
[397605553,1765211459236,-596.31,8.767e-05,2]
[397605555,1765211459245,-1643.62,8.767e-05,2]
[397605557,1765211459254,-500.0,8.767e-05,2]
[397605559,1765211459263,-500.0,8.767e-05,2]
[397605561,1765211459272,-1132.07,8.767e-05,2]
[397605562,1765211459283,-643.25293121,8.767e-05,2]
[397605564,1765211459292,-500.0,8.767e-05,2]
[397605566,1765211459301,-500.0,8.767e-05,2]
[397605568,1765211459310,-845.39,8.767e-05,2]
[397605571,1765211459320,-458.28384403,8.767e-05,2]
[397605572,1765211459330,-500.0,8.767e-05,2]
[397605574,1765211459339,-500.0,8.767e-05,2]
[397605576,1765211459349,-1654.64,8.767e-05,2]
[397605579,1765211459359,-500.0,8.767e-05,2]
[397605581,1765211459369,-1000.0,8.767e-05,2]
[397605583,1765211459379,-1031.58,8.767e-05,2]
[397605584,1765211459389,-500.0,8.767e-05,2]
[397605586,1765211459398,-500.0,8.767e-05,2]
[397605588,1765211459407,-500.0,8.767e-05,2]
[397605590,1765211459417,-500.0,8.767e-05,2]
[397605593,1765211459428,-692.61,8.767e-05,2]
[397605594,1765211459437,-838.92,8.767e-05,2]
[397605596,1765211459446,-500.0,8.767e-05,2]
[397605598,1765211459456,-298.70566442,8.767e-05,2]
[397605601,1765211459468,-1123.31,8.767e-05,2]
[397605602,1765211459477,-500.0,8.767e-05,2]
[397605605,1765211459487,-500.0,8.767e-05,2]
[397605607,1765211459496,-500.0,8.767e-05,2]
[397605609,1765211459505,-500.0,8.767e-05,2]
[397605611,1765211459514,-503.76785368,8.767e-05,2]
[397605612,1765211459523,-500.0,8.767e-05,2]
[397605614,1765211459533,-677.42,8.767e-05,2]
[397605616,1765211459542,-1140.37,8.767e-05,2]
[397605618,1765211459551,-500.0,8.767e-05,2]
[397605620,1765211459560,-938.12,8.767e-05,2]
[397605622,1765211459569,-500.0,8.767e-05,2]
[397605624,1765211459578,-1104.41,8.767e-05,2]
[397605626,1765211459587,-500.0,8.767e-05,2]
[397605628,1765211459596,-214.4328726,8.767e-05,2]
[397605630,1765211459606,-500.0,8.767e-05,2]
[397605632,1765211459615,-653.08,8.767e-05,2]
[397605634,1765211459624,-1044.58,8.767e-05,2]
[397605636,1765211459633,-500.0,8.767e-05,2]
[397605638,1765211459642,-500.0,8.767e-05,2]
[397605640,1765211459651,-480.0,8.767e-05,2]
[397605642,1765211459660,-500.0,8.767e-05,2]
[397605644,1765211459669,-500.0,8.767e-05,2]
[397605646,1765211459678,-699.09,8.767e-05,2]
[397605648,1765211459687,-500.0,8.767e-05,2]
[397605650,1765211459696,-309.451362,8.767e-05,2]
[397605652,1765211459705,-500.0,8.767e-05,2]
[397605654,1765211459715,-735.42,8.767e-05,2]
[397605656,1765211459724,-500.0,8.767e-05,2]
[397605658,1765211459734,-503.90849204,8.767e-05,2]
[397605660,1765211459743,-500.0,8.767e-05,2]
[397605662,1765211459753,-500.0,8.767e-05,2]
[397605664,1765211459762,-500.0,8.767e-05,2]
[397605666,1765211459771,-500.0,8.767e-05,2]
[397605668,1765211459781,-500.0,8.767e-05,2]
[397605670,1765211459790,-500.0,8.767e-05,2]
[397605672,1765211459801,-639.62,8.767e-05,2]
[397605673,1765211459810,-500.0,8.767e-05,2]
[397605675,1765211459821,-500.0,8.767e-05,2]
[397605678,1765211459831,-500.76184206,8.767e-05,2]
[397605680,1765211459840,-500.75958091,8.767e-05,2]
[397605681,1765211459849,-500.0,8.767e-05,2]
[397605683,1765211459859,-972.44,8.767e-05,2]
[397605685,1765211459870,-500.0,8.767e-05,2]
[397605704,1765211460047,-1210.57,8.767e-05,2]
[397605706,1765211460058,-652.48,8.767e-05,2]
[397605708,1765211460069,-500.0,8.767e-05,2]
[397605710,1765211460081,-500.0,8.767e-05,2]
[397605712,1765211460091,-500.0,8.767e-05,2]
[397605714,1765211460103,-500.0,8.767e-05,2]
[397605716,1765211460112,-500.0,8.767e-05,2]
[397605718,1765211460124,-557.11,8.767e-05,2]
[397605720,1765211460134,-1238.38,8.767e-05,2]
[397605722,1765211460144,-500.0,8.767e-05,2]
[397605724,1765211460154,-500.0,8.767e-05,2]
[397605726,1765211460165,-500.0,8.767e-05,2]
[397605728,1765211460176,-500.0,8.767e-05,2]
[397605730,1765211460187,-500.0,8.767e-05,2]
[397605732,1765211460198,-507.77428484,8.767e-05,2]
[397605734,1765211460210,-1908.74,8.767e-05,2]
[397605736,1765211460224,-862.18,8.767e-05,2]
[397605738,1765211460235,-500.0,8.767e-05,2]
[397605740,1765211460244,-990.0,8.767e-05,2]
[397605742,1765211460253,-500.0,8.767e-05,2]
[397605743,1765211460263,-621.86,8.767e-05,2]
[397605745,1765211460273,-1660.21,8.767e-05,2]
[397605747,1765211460283,-500.0,8.767e-05,2]
[397605749,1765211460294,-500.0,8.767e-05,2]
[397605751,1765211460304,-500.0,8.767e-05,2]
[397605754,1765211460314,-1221.09,8.767e-05,2]
[397605756,1765211460324,-633.8,8.767e-05,2]
[397605757,1765211460333,-1065.98,8.767e-05,2]
[397605760,1765211460343,-1582.79,8.767e-05,2]
[397605762,1765211460353,-500.0,8.767e-05,2]
[397605764,1765211460362,-1099.53,8.767e-05,2]
[397605766,1765211460372,-506.81006982,8.767e-05,2]
[397605768,1765211460383,-500.0,8.767e-05,2]
[397605770,1765211460394,-1598.3,8.767e-05,2]
[397605771,1765211460405,-500.0,8.767e-05,2]
[397605773,1765211460416,-500.0,8.767e-05,2]
[397605775,1765211460426,-500.0,8.767e-05,2]
[397605778,1765211460436,-596.72,8.767e-05,2]
[397605780,1765211460447,-500.0,8.767e-05,2]
[397605782,1765211460457,-501.30677012,8.767e-05,2]
[397605784,1765211460469,-501.58717893,8.767e-05,2]
[397605786,1765211460480,-500.0,8.767e-05,2]
[397605788,1765211460490,-500.0,8.767e-05,2]
[397605789,1765211460501,-500.85801739,8.767e-05,2]
[397605791,1765211460511,-3158.44,8.767e-05,2]
[397605793,1765211460520,-358.03062211,8.767e-05,2]
[397605795,1765211460530,-250.03775567,8.767e-05,2]
[397605797,1765211460540,-537.41,8.767e-05,2]
[397605799,1765211460549,-500.0,8.767e-05,2]
[397605801,1765211460558,-206.45331707,8.767e-05,2]
[397605803,1765211460568,-500.0,8.767e-05,2]
[397605805,1765211460579,-2539.9,8.767e-05,2]
[397605807,1765211460590,-1130.61,8.767e-05,2]
[397605809,1765211460602,-715.76,8.767e-05,2]
[397605811,1765211460612,-500.0,8.767e-05,2]
[397605813,1765211460621,-500.0,8.767e-05,2]
[397605815,1765211460631,-500.65243795,8.767e-05,2]
[397605817,1765211460640,-216.28731471,8.767e-05,2]
[397605819,1765211460649,-1978.08,8.767e-05,2]
[397605821,1765211460658,-872.81,8.767e-05,2]
[397605823,1765211460667,-761.77,8.767e-05,2]
[397605825,1765211460677,-500.0,8.767e-05,2]
[397605827,1765211460686,-792.06,8.767e-05,2]
[397605829,1765211460698,-692.9,8.767e-05,2]
[397605831,1765211460709,-500.0,8.767e-05,2]
[397605832,1765211460722,-445.0152401,8.767e-05,2]
[397605833,1765211460731,-1848.94,8.767e-05,2]
[397605834,1765211460744,-500.0,8.767e-05,2]
[397605835,1765211460756,-500.0,8.767e-05,2]
[397605836,1765211460766,-500.0,8.767e-05,2]
[397605837,1765211460777,-1132.24,8.767e-05,2]
[397605838,1765211460787,-694.84,8.767e-05,2]
[397605839,1765211460798,-500.0,8.767e-05,2]
[397605840,1765211460808,-1018.98,8.767e-05,2]
[397605841,1765211460818,-500.0,8.767e-05,2]
[397605842,1765211460828,-521.17898924,8.767e-05,2]
[397605843,1765211460838,-500.0,8.767e-05,2]
[397605844,1765211460848,-594.72,8.767e-05,2]
[397605846,1765211460858,-500.0,8.767e-05,2]
[397605847,1765211460868,-562.15,8.767e-05,2]
[397605849,1765211460877,-500.0,8.767e-05,2]
[397605851,1765211460889,-596.14,8.767e-05,2]
[397605853,1765211460898,-502.35146498,8.767e-05,2]
[397605855,1765211460907,-500.0,8.767e-05,2]
[397605857,1765211460917,-500.0,8.767e-05,2]
[397605859,1765211460927,-500.0,8.767e-05,2]
[397605861,1765211460936,-937.82,8.767e-05,2]
[397605863,1765211460947,-506.68776081,8.767e-05,2]
[397605865,1765211460958,-500.80334991,8.767e-05,2]
[397605867,1765211460972,-500.0,8.767e-05,2]
[397605870,1765211460982,-756.93,8.767e-05,2]
[397605872,1765211460993,-500.0,8.767e-05,2]
[397605874,1765211461003,-500.0,8.767e-05,2]
[397605875,1765211461013,-885.41,8.767e-05,2]
[397605878,1765211461023,-837.46,8.767e-05,2]
[397605880,1765211461034,-513.82,8.767e-05,2]
[397605882,1765211461044,-500.0,8.767e-05,2]
[397605884,1765211461054,-1508.83,8.767e-05,2]
[397605885,1765211461064,-430.19464483,8.767e-05,2]
[397605888,1765211461075,-878.09,8.767e-05,2]
[397605889,1765211461086,-2400.14,8.767e-05,2]
[397605892,1765211461096,-745.78,8.767e-05,2]
[397605894,1765211461107,-654.34,8.767e-05,2]
[397605896,1765211461117,-1147.75,8.767e-05,2]
[397605898,1765211461126,-500.0,8.767e-05,2]
[397605900,1765211461137,-945.69,8.767e-05,2]
[397605901,1765211461146,-501.84617286,8.767e-05,2]
[397605903,1765211461156,-500.0,8.767e-05,2]
[397605905,1765211461167,-500.0,8.767e-05,2]
[397605907,1765211461176,-733.75,8.767e-05,2]
[397605909,1765211461185,-1017.28,8.767e-05,2]
[397605911,1765211461196,-1430.46,8.767e-05,2]
[397605913,1765211461205,-500.0,8.767e-05,2]
[397605915,1765211461218,-829.39,8.767e-05,2]
[397605917,1765211461228,-500.0,8.767e-05,2]
[397605919,1765211461239,-621.29,8.767e-05,2]
[397605921,1765211461251,-151.93018,8.767e-05,2]
[397605962,1765211461650,-348.06982,8.767e-05,2]
[397605964,1765211461660,-1186.17,8.767e-05,2]
[397605966,1765211461671,-1041.620866,8.767e-05,2]
[397605990,1765211461924,-167.779134,8.767e-05,2]
[397605992,1765211461934,-500.0,8.767e-05,2]
[397605994,1765211461945,-500.0,8.767e-05,2]
[397605996,1765211461956,-500.0,8.767e-05,2]
[397605998,1765211461967,-97.829638,8.767e-05,2]
[397606051,1765211462522,-1557.21,8.219e-05,2]
[397606053,1765211462532,-2329.210362,8.767e-05,2]
[397606055,1765211462541,-500.0,8.767e-05,2]
[397606057,1765211462550,-500.0,8.767e-05,2]
[397606059,1765211462559,-500.0,8.767e-05,2]
[397606061,1765211462574,-714.55,8.767e-05,2]
[397606063,1765211462590,-500.0,8.767e-05,2]
[397606065,1765211462599,-1552.88,8.767e-05,2]
[397606067,1765211462609,-500.0,8.767e-05,2]
[397606069,1765211462620,-500.0,8.767e-05,2]
[397606071,1765211462630,-500.0,8.767e-05,2]
[397606073,1765211462639,-533.59987959,8.767e-05,2]
[397606075,1765211462649,-1634.53,8.767e-05,2]
[397606077,1765211462658,-500.0,8.767e-05,2]
[397606079,1765211462667,-500.0,8.767e-05,2]
[397606081,1765211462677,-500.0,8.767e-05,2]
[397606083,1765211462687,-500.0,8.767e-05,2]
[397606085,1765211462696,-621.15,8.767e-05,2]
[397606087,1765211462706,-502.2200439,8.767e-05,2]
[397606089,1765211462718,-500.0,8.767e-05,2]
[397606091,1765211462727,-500.0,8.767e-05,2]
[397606093,1765211462737,-500.0,8.767e-05,2]
[397606095,1765211462746,-500.0,8.767e-05,2]
[397606097,1765211462756,-500.0,8.767e-05,2]
[397606099,1765211462766,-500.0,8.767e-05,2]
[397606101,1765211462775,-846.06948951,8.767e-05,2]
[397617649,1765211881098,298.96,5.006e-05,2]
[397617650,1765211881428,298.96,5.006e-05,2]
[397617651,1765211881718,298.96,5.006e-05,2]
[397617652,1765211946616,-170.0,0.00012574,10]
[397617659,1765212569128,-5000.0,5.804e-05,2]
[397617660,1765212569148,-309.77595976,5.834e-05,2]
[397617661,1765212569168,-5000.0,5.863e-05,2]
[397617662,1765212569189,-5000.0,5.922e-05,2]
[397617663,1765212569209,-511.0,6.354e-05,2]
[397617664,1765212569227,-654.87894625,6.514e-05,2]
[397617665,1765212569246,-631.0,6.748e-05,2]
[397617666,1765212569264,-2155.0,6.748e-05,2]
[397617667,1765212569283,-1359.0,6.748e-05,2]
[397617668,1765212569301,-415.0,6.748e-05,2]
[397617669,1765212569321,-300.0,6.882e-05,2]
[397617670,1765212569342,-300.0,6.882e-05,2]
[397617671,1765212569362,-300.0,6.882e-05,2]
[397617672,1765212569386,-300.0,6.882e-05,2]
[397617673,1765212569409,-300.0,6.882e-05,2]
[397617674,1765212569432,-300.0,6.882e-05,2]
[397617675,1765212569452,-300.0,6.882e-05,2]
[397617676,1765212569472,-300.0,6.882e-05,2]
[397617677,1765212569491,-300.0,6.882e-05,2]
[397617678,1765212569512,-300.0,6.882e-05,2]
[397617679,1765212569533,-300.0,6.882e-05,2]
[397617680,1765212569552,-300.0,6.882e-05,2]
[397617681,1765212569573,-300.0,6.882e-05,2]
[397617682,1765212569592,-300.0,6.882e-05,2]
[397617683,1765212569612,-300.0,6.882e-05,2]
[397617684,1765212569632,-600.0,7.019e-05,2]
[397617685,1765212569650,-100.91548773,7.173e-05,2]
[397617725,1765212632747,-5000.0,6.96e-05,2]
[397617726,1765212632757,-519.0,6.96e-05,2]
[397617727,1765212632767,-161.14028423,7.03e-05,2]
[397617728,1765212632777,-4296.43596173,7.101e-05,2]
[397617754,1765212638155,-285.884835,6.89e-05,2]
[397617765,1765212638265,-3050.18502718,6.89e-05,2]
[397617768,1765212638277,-1663.93013782,6.89e-05,2]
[397617770,1765212638288,-703.56403827,7.101e-05,2]
[397617772,1765212638297,-553.96345852,7.173e-05,2]
[397617774,1765212638307,-300.0,7.242e-05,2]
[397617776,1765212638317,-300.0,7.242e-05,2]
[397617778,1765212638327,-300.0,7.242e-05,2]
[397617780,1765212638337,-300.0,7.242e-05,2]
[397617782,1765212638347,-300.0,7.242e-05,2]
[397617784,1765212638357,-300.0,7.242e-05,2]
[397617786,1765212638367,-300.0,7.242e-05,2]
[397617788,1765212638377,-300.0,7.242e-05,2]
[397617789,1765212638389,-300.0,7.242e-05,2]
[397617791,1765212638399,-300.0,7.242e-05,2]
[397617793,1765212638408,-300.0,7.242e-05,2]
[397617795,1765212638418,-300.0,7.242e-05,2]
[397617797,1765212638429,-300.0,7.242e-05,2]
[397617799,1765212638439,-300.0,7.242e-05,2]
[397617801,1765212638448,-300.0,7.242e-05,2]
[397617803,1765212638458,-277.17341036,7.33e-05,2]
[397617805,1765212638469,-600.0,7.386e-05,2]
[397617807,1765212638478,-1007.16241947,7.681e-05,2]
[397617808,1765212638487,-176.058,7.72e-05,2]
[397617810,1765212638496,-5047.18389403,7.819e-05,2]
[397617813,1765212638508,-593.2364271,7.819e-05,2]
[397617815,1765212638518,-573.84678999,7.819e-05,2]
[397617817,1765212638530,-472.72968921,7.819e-05,2]
[397617988,1765212640275,-195.35186999,7.819e-05,2]
[397617991,1765212640301,-17649.84227368,7.819e-05,2]
[397617994,1765212640312,-5248.40096563,7.819e-05,2]
[397617996,1765212640322,-494.03329126,7.819e-05,2]
[397625635,1765213651122,-481.89619091,6.042e-05,2]
[397625636,1765213683103,313.91,5.006e-05,2]
[397625637,1765213683389,313.91,5.006e-05,2]
[397625639,1765213773239,-4518.10380909,6.042e-05,2]
[397625640,1765213773260,-303.58044057,6.073e-05,2]
[397625641,1765213773279,-5000.0,6.103e-05,2]
[397625642,1765213773297,-512.0,6.418e-05,2]
[397625643,1765213773316,-296.769,6.748e-05,2]
[397625644,1765213773334,-150.538,6.748e-05,2]
[397625645,1765213773353,-151.169,6.748e-05,2]
[397625646,1765213773373,-150.0,6.748e-05,2]
[397625647,1765213773395,-150.587,6.748e-05,2]
[397625648,1765213773413,-1359.0,6.748e-05,2]
[397625649,1765213773432,-2155.0,6.748e-05,2]
[397625650,1765213773453,-631.0,6.748e-05,2]
[397625651,1765213773472,-134.87595716,6.748e-05,2]
[397625673,1765213832435,-343.40866151,6.614e-05,2]
[397625702,1765213838222,-4656.59133849,6.614e-05,2]
[397625703,1765213838231,-514.0,6.614e-05,2]
[397625704,1765213838240,-4364.34192688,6.681e-05,2]
[397625705,1765213838250,-280.12404284,6.748e-05,2]
[397625706,1765213838259,-300.0,6.882e-05,2]
[397625707,1765213838269,-300.0,6.882e-05,2]
[397625708,1765213838278,-300.0,6.882e-05,2]
[397625709,1765213838287,-300.0,6.882e-05,2]
[397625710,1765213838296,-300.0,6.882e-05,2]
[397625711,1765213838306,-300.0,6.882e-05,2]
[397625713,1765213838317,-300.0,6.882e-05,2]
[397625714,1765213838327,-300.0,6.882e-05,2]
[397625716,1765213838336,-300.0,6.882e-05,2]
[397625717,1765213838346,-300.0,6.882e-05,2]
[397625718,1765213838356,-300.0,6.882e-05,2]
[397625719,1765213838366,-300.0,6.882e-05,2]
[397625720,1765213838375,-300.0,6.882e-05,2]
[397625721,1765213838385,-300.0,6.882e-05,2]
[397625722,1765213838395,-300.0,6.882e-05,2]
[397625723,1765213838405,-201.38261111,6.95e-05,2]
[397625724,1765213838415,-2896.03123546,6.95e-05,2]
[397625725,1765213838425,-600.0,7.019e-05,2]
[397625726,1765213838434,-527.38410526,7.18e-05,3]
[397625727,1765213838444,-384.3929574,7.397e-05,2]
[397625728,1765213838454,-384.7733376,7.397e-05,2]
[397625729,1765213838463,-259.58269467,7.423e-05,2]
[397625730,1765213838473,-688.49263581,7.461e-05,2]
[397626468,1765213846410,-7161.21051969,7.461e-05,2]
[397626470,1765213846420,-1830.55843031,7.461e-05,2]
[397635209,1765214827214,-333.11535146,6.178e-05,2]
[397635210,1765214828118,-4666.88464854,6.178e-05,2]
[397635211,1765214828149,-306.70701013,6.271e-05,2]
[397635212,1765214828174,-882.3541481,6.303e-05,2]
[397635213,1765214828197,-516.0,6.752e-05,2]
[397635214,1765214828225,-1200.0,6.887e-05,2]
[397635215,1765214828248,-300.0,6.887e-05,2]
[397635216,1765214828269,-1200.0,6.888e-05,2]
[397635217,1765214828289,-300.0,6.888e-05,2]
[397635218,1765214828311,-300.0,6.888e-05,2]
[397635219,1765214828333,-300.0,6.888e-05,2]
[397635220,1765214828355,-999.971,6.889e-05,2]
[397635221,1765214828380,-631.0,6.889e-05,2]
[397635222,1765214828401,-415.0,6.889e-05,2]
[397635223,1765214828424,-500.0,7.083e-05,2]
[397635224,1765214828445,-165.73477414,7.083e-05,2]
[397635225,1765214828468,-500.0,7.083e-05,2]
[397635226,1765214828489,-500.0,7.083e-05,2]
[397635227,1765214828511,-500.0,7.083e-05,2]
[397635228,1765214828532,-305.42893761,7.083e-05,2]
[397635229,1765214828552,-500.0,7.083e-05,2]
[397635230,1765214828577,-500.0,7.083e-05,2]
[397635231,1765214828597,-500.0,7.083e-05,2]
[397635232,1765214828621,-500.0,7.083e-05,2]
[397635233,1765214828644,-223.0,7.083e-05,2]
[397635235,1765214828668,-300.0,7.087e-05,2]
[397635236,1765214828693,-300.0,7.087e-05,2]
[397635237,1765214828718,-300.0,7.087e-05,2]
[397635238,1765214828740,-300.0,7.087e-05,2]
[397635239,1765214828764,-300.0,7.087e-05,2]
[397635240,1765214828786,-300.0,7.087e-05,2]
[397635241,1765214828809,-300.0,7.087e-05,2]
[397635242,1765214828832,-300.0,7.087e-05,2]
[397635243,1765214828856,-300.0,7.087e-05,2]
[397635244,1765214828881,-300.0,7.087e-05,2]
[397635245,1765214828903,-300.0,7.087e-05,2]
[397635246,1765214828926,-300.0,7.087e-05,2]
[397635247,1765214828948,-300.0,7.087e-05,2]
[397635248,1765214828971,-300.0,7.087e-05,2]
[397635249,1765214828994,-300.0,7.087e-05,2]
[397635250,1765214829017,-184.306,7.087e-05,2]
[397635251,1765214829039,-573.22100457,7.141e-05,2]
[397635252,1765214829061,-1031.79780823,7.141e-05,2]
[397635253,1765214829082,-1834.30721463,7.141e-05,2]
[397635254,1765214829104,-2866.10502286,7.141e-05,2]
[397635255,1765214829133,-4123.06404168,7.141e-05,2]
[397635256,1765214829155,-338.54701641,7.141e-05,2]
[397635257,1765214829179,-386.52396502,7.141e-05,2]
[397635258,1765214829201,-316.64018335,7.141e-05,2]
[397635259,1765214829226,-569.95233004,7.141e-05,2]
[397635260,1765214829248,-1012.23533814,7.141e-05,2]
[397635261,1765214829271,-600.0,7.228e-05,2]
[397635262,1765214829290,-393.24164678,7.296e-05,2]
[397635263,1765214829313,-2061.87,7.386e-05,2]
[397635264,1765214829333,-70.96874599,7.461e-05,2]
[397635265,1765214829354,-420.0,7.576e-05,2]
[397635266,1765214829379,-120999.86589578,7.619e-05,2]
[397635268,1765214854078,-1824.59396451,7.543e-05,2]
[397635269,1765214854105,-467484.81189457,7.619e-05,2]
[397635270,1765214854130,-250.0,7.818e-05,2]
[397635271,1765214854158,-3734.44061058,7.924e-05,2]
[397635272,1765214854183,-720.0,7.95e-05,2]
[397635273,1765214854204,-393.24164678,7.963e-05,2]
[397635274,1765214854228,-3734.44061058,8.047e-05,2]
[397635275,1765214854252,-358.22,8.159e-05,2]
[397635276,1765214854274,-158.1,8.159e-05,2]
[397635277,1765214854294,-158.1,8.159e-05,2]
[397635278,1765214854315,-158.1,8.159e-05,2]
[397635279,1765214854336,-158.1,8.159e-05,2]
[397635280,1765214854356,-158.1,8.159e-05,2]
[397635281,1765214854377,-158.1,8.159e-05,2]
[397635282,1765214854398,-158.09,8.159e-05,2]
[397635283,1765214854421,-500.0,8.198e-05,2]
[397635284,1765214854442,-500.0,8.198e-05,2]
[397635285,1765214854463,-500.0,8.198e-05,2]
[397635286,1765214854483,-500.0,8.198e-05,2]
[397635287,1765214854503,-500.0,8.198e-05,2]
[397635288,1765214854523,-2487.15318209,8.198e-05,2]
[397635289,1765214854547,-500.0,8.198e-05,2]
[397635290,1765214854567,-500.0,8.198e-05,2]
[397635291,1765214854589,-500.0,8.198e-05,2]
[397635292,1765214854609,-500.0,8.198e-05,2]
[397635293,1765214854630,-500.0,8.198e-05,2]
[397635294,1765214854651,-500.0,8.198e-05,2]
[397635295,1765214854673,-500.0,8.198e-05,2]
[397635296,1765214854693,-500.0,8.198e-05,2]
[397635297,1765214854715,-500.0,8.198e-05,2]
[397635298,1765214854735,-500.23671378,8.219e-05,2]
[397635299,1765214854755,-500.21457802,8.219e-05,2]
[397635300,1765214854775,-500.0,8.219e-05,2]
[397635301,1765214854795,-500.0,8.219e-05,2]
[397635302,1765214854815,-500.0,8.219e-05,2]
[397635303,1765214854836,-1885.745707,8.219e-05,2]
[397635304,1765214854857,-500.0,8.219e-05,2]
[397635305,1765214854881,-500.0,8.219e-05,2]
[397635306,1765214854907,-500.0,8.219e-05,2]
[397635307,1765214854934,-500.0,8.219e-05,2]
[397635308,1765214854956,-500.0,8.219e-05,2]
[397635309,1765214854980,-727.93,8.219e-05,2]
[397635310,1765214855002,-500.0,8.219e-05,2]
[397635311,1765214855025,-500.0,8.219e-05,2]
[397635312,1765214855045,-500.0,8.219e-05,2]
[397635313,1765214855066,-500.0,8.219e-05,2]
[397635314,1765214855087,-500.0,8.219e-05,2]
[397635315,1765214855109,-500.0,8.219e-05,2]
[397635316,1765214855131,-500.0,8.219e-05,2]
[397635317,1765214855164,-500.0,8.219e-05,2]
[397635318,1765214855184,-1693.48,8.219e-05,2]
[397635319,1765214855205,-573.34,8.219e-05,2]
[397635320,1765214855225,-521.77,8.219e-05,2]
[397635321,1765214855246,-1053.26,8.219e-05,2]
[397635322,1765214855266,-500.0,8.219e-05,2]
[397635323,1765214855287,-500.0,8.219e-05,2]
[397635324,1765214855307,-1188.64,8.219e-05,2]
[397635325,1765214855328,-500.0,8.219e-05,2]
[397635326,1765214855348,-1036.87,8.219e-05,2]
[397635327,1765214855369,-500.0,8.219e-05,2]
[397635328,1765214855390,-935.46,8.219e-05,2]
[397635329,1765214855412,-500.0,8.219e-05,2]
[397635330,1765214855433,-500.0,8.219e-05,2]
[397635331,1765214855454,-698.57,8.219e-05,2]
[397635332,1765214855475,-557.38669775,8.219e-05,2]
[397635333,1765214855495,-500.0,8.219e-05,2]
[397635334,1765214855515,-500.0,8.219e-05,2]
[397635335,1765214855534,-585.61,8.219e-05,2]
[397635336,1765214855553,-902.63,8.219e-05,2]
[397635337,1765214855573,-500.0,8.219e-05,2]
[397635338,1765214855592,-500.0,8.219e-05,2]
[397635339,1765214855612,-500.0,8.219e-05,2]
[397635340,1765214855632,-500.0,8.219e-05,2]
[397635341,1765214855652,-500.0,8.219e-05,2]
[397635342,1765214855672,-606.03,8.219e-05,2]
[397635343,1765214855693,-500.0,8.219e-05,2]
[397635344,1765214855713,-500.0,8.219e-05,2]
[397635345,1765214855734,-1531.76,8.219e-05,2]
[397635346,1765214855754,-574.19,8.219e-05,2]
[397635347,1765214855774,-734.05,8.219e-05,2]
[397635348,1765214855793,-500.86066975,8.219e-05,2]
[397635349,1765214855812,-500.0,8.219e-05,2]